Cogmind - Beta 13 @@@ ROGUE MODE // 2024.04.01 @ 18:53:44 Player: BigMaxPorter Result: Destroyed by G-34 Mercenary with Small Laser Performance ------------- Evolutions (1) 500 Regions Visited (2) 400 Robots Destroyed (14) 70 Value Destroyed (435) 435 Prototype IDs (0) 0 Alien Tech Used (0) 0 Bonus (0) 0 TOTAL SCORE: 1405 Bonus ------- None Cogmind --------- Core Integrity 0/400 Matter 219/300 Energy 77/100 System Corruption 1% Temperature Cool (24) Movement Core (50) Location -9/Materials Parts ------- > --- POWER (1) -------- (None) > --- PROPULSION (3) --- (None) > --- UTILITY (3) ------ Visual Processing Unit > --- WEAPON (2) ------- Assault Rifle > --- INVENTORY (5) ---- Signal Interpreter Peak State ------------ > --- POWER ------------ Ion Engine > --- PROPULSION ------- Aluminum Leg Aluminum Leg Aluminum Leg > --- UTILITY ---------- Visual Processing Unit Targeting Computer Medium Armor Plating > --- WEAPON ----------- Assault Rifle Heavy Assault Rifle > --- INVENTORY -------- Signal Interpreter Backup Plating I Light Armor Plating Assault Rifle Assault Rifle [Rating: 12] Favorites ----------- Power Ion Engine Engine Ion Engine Propulsion Aluminum Leg Leg Aluminum Leg Utility Visual Processing Unit Storage Small Storage Unit Processor Visual Processing Unit Protection Backup Plating I Weapon Assault Rifle Energy Gun Small Laser Ballistic Gun Assault Rifle Build | -11 -10 -9 ------- Run | Yrd Mat Mat Slots Evolved 2 | . . 2 Power . | . . . Propulsion 1 | . . 1 Utility 1 | . . 1 Weapon . | . . . Parts Attached 20 | 6 2 12 Power 2 | 1 1 . Engine 2 | 1 1 . Core . | . . . Reactor . | . . . Propulsion 5 | 2 . 3 Treads . | . . . Leg 5 | 2 . 3 Wheel . | . . . Hover . | . . . Flight . | . . . Utility 6 | 1 1 4 Device . | . . . Storage 1 | 1 . . Processor 2 | . 1 1 Hackware . | . . . Protection 3 | . . 3 Artifact . | . . . Weapon 7 | 2 . 5 Energy Gun 1 | . . 1 Energy Cannon . | . . . Ballistic Gun 6 | 2 . 4 Ballistic Cannon . | . . . Launcher . | . . . Special Weapon . | . . . Impact Weapon . | . . . Slashing Weapon . | . . . Piercing Weapon . | . . . Special Melee Weapon . | . . . Unidentified Prototypes . | . . . Parts Lost 13 | . . 13 Power 1 | . . 1 Propulsion 4 | . . 4 Utility 4 | . . 4 Weapon 4 | . . 4 Highest Loss Streak 12 | . . 12 To Critical Strikes . | . . . Average Slot Usage (%) 92 | . 94 91 Engine 11 | . 14 9 Leg 28 | . 28 28 Storage 2 | . 6 . Processor 15 | . 7 20 Protection 10 | . 9 11 Ballistic Gun 23 | . 28 20 Naked Turns . | . . . Heaviest Build 17 | 14 15 17 Greatest Support 30 | 20 20 30 Greatest Overweight (x) 2 | . . 2 Average Overweight (x) . | . . . Largest Inventory Capacity 8 | 8 8 5 Average Capacity 5 | 7 6 5 Most Carried 5 | 3 5 5 Average Carried 3 | 1 3 3 Final Capacity 8 | 8 5 5 Final Carried 4 | 3 4 1 Class Distribution -------------------- 73% | Mutant 26% | Scavenger-Mutant Dominant Class ---------------- Mutant | -10/Materials Scavenger-Mutant | -9/Materials Resources | -11 -10 -9 ----------- Run | Yrd Mat Mat Matter Collected 491 | 200 173 118 Remotely . | . . . Salvage Created 479 | . 161 318 Parts 33 | . 16 17 Haulers Intercepted . | . . . Recyclers Shooed . | . . . Parts Field Recycled . | . . . Retrieved Matter . | . . . Parts Self-Destructed . | . . . Prevented . | . . . Kills | -11 -10 -9 ------- Run | Yrd Mat Mat Combat Hostiles Destroyed 11 | . 4 7 Guns 11 | . 4 7 Classes Destroyed 2 | . 2 . Watcher 3 | . 1 2 Grunt 11 | . 4 7 Best Kill Streak 3 | . 3 3 Combat Bots Only 3 | . 3 3 Max Kills in Single Turn 1 | . 1 1 Gunslinging . | . . . Exploded . | . . . Melee . | . . . Uniques/NPCs Destroyed . | . . . Combat | -11 -10 -9 -------- Run | Yrd Mat Mat Hostile Shots Fired 171 | . 7 164 Missed 39 | . 3 36 Damage Taken 1638 | . 47 1591 Core 406 | . . 406 Absorbed by Shields . | . . . Core Remaining (%) 100 | 100 100 . Volleys Fired 46 | . 16 30 Largest 2 | . 2 2 Hottest 43 | . 40 43 Shots Fired 82 | . 31 51 Gun 82 | . 31 51 Cannon . | . . . Launcher . | . . . Special . | . . . Kinetic 80 | . 31 49 Thermal 2 | . . 2 Explosive . | . . . Electromagnetic . | . . . Robot Hit Streak 9 | . 5 9 Robot Miss Streak 3 | . 3 2 Penetration Max . | . . . Secondary Targets 2 | . 1 1 Max Gunslinging Chain 1 | . 1 1 Shots Hit Robots 56 | . 17 39 Core Hits 27 | . 7 20 Critical Kills . | . . . Critical Parts Destroyed 1 | . 1 . Critical Strikes 1 | . 1 . Destroy 1 | . 1 . Melee Attacks . | . . . Impact . | . . . Slashing . | . . . Piercing . | . . . Sneak Attacks . | . . . Combat Hostiles . | . . . Follow-up Attacks . | . . . Damage Inflicted 729 | . 214 515 Guns 723 | . 214 509 Cannons . | . . . Explosions . | . . . Melee . | . . . Ramming 6 | . . 6 Kinetic 701 | . 214 487 Thermal 22 | . . 22 Explosive . | . . . Electromagnetic . | . . . Impact . | . . . Slashing . | . . . Piercing . | . . . Highest Corruption 1 | . 1 1 Average Corruption 1 | . 1 1 Corruption Purged . | . . . Corruption Blocked . | . . . Effects 9 | . 3 6 Message Errors 4 | . 1 3 Energy Discharges 1 | . . 1 Parts Rejected 1 | . . 1 Data Loss (minor) 1 | . 1 . Alerts 1 | . . 1 Weapon Failures 1 | . 1 . Overload Shots . | . . . Overflow Damage . | . . . Projectiles . | . . . Explosions . | . . . Melee . | . . . Knockbacks . | . . . Impact . | . . . Kinetic . | . . . Secondary . | . . . Self-Inflicted Damage . | . . . Shots . | . . . Rammed 1 | . . 1 Targets Rammed 2 | . . 2 Kicked 1 | . . 1 Crushed . | . . . Highest Temperature 7 | . . 7 Average Temperature 4 | . . 4 Received Heat Transfer 762 | . 24 738 Siege Activations . | . . . Robots Corrupted . | . . . Combat Hostiles . | . . . Parts Fried . | . . . Impact Corruptions . | . . . Robots Melted . | . . . Combat Hostiles . | . . . Parts Melted . | . . . Heat Transferred 50 | . . 50 Parts Sabotaged . | . . . Parts Stolen . | . . . Parts Stripped . | . . . Power Chain Reactions . | . . . Alert | -11 -10 -9 ------- Run | Yrd Mat Mat Peak Influence 254 | . 203 254 Initial 85 | . . 85 Average 126 | . 94 169 Maximum Alert Level 1 | . 1 1 Low Security (%) 68 | 100 88 48 Level 1 31 | . 11 51 Level 2 . | . . . Level 3 . | . . . Level 4 . | . . . Level 5 . | . . . High Security . | . . . Max Security . | . . . Squads Dispatched 6 | . 3 3 Investigation 5 | . 3 2 Extermination . | . . . Reinforcement 1 | . . 1 Assault . | . . . Garrison . | . . . Intercept . | . . . Searches Triggered . | . . . Construction Impeded . | . . . Haulers Reinforced . | . . . Active Scanning Responses . | . . . Cargo Convoy Interrupts . | . . . Stealth | -11 -10 -9 --------- Run | Yrd Mat Mat Distress Signals 1 | . . 1 Communications Jammed . | . . . Distress Signals . | . . . Times Spotted 32 | . 11 21 Peak Tracking Total 10 | . 3 10 Tactical Retreats 3 | . 1 2 Traps | -11 -10 -9 ------- Run | Yrd Mat Mat Traps Triggered . | . . . Indirectly . | . . . Trap Hack Attempts . | . . . Triggered . | . . . Disarmed . | . . . Reprogrammed . | . . . Reused . | . . . Traps Extracted . | . . . Installed . | . . . Triggered . | . . . Machines | -11 -10 -9 ---------- Run | Yrd Mat Mat Machines Disabled . | . . . Max in Single Turn . | . . . Machines Repaired . | . . . Machines Dismantled . | . . . Machines Sabotaged . | . . . Overloaded Fab Kills . | . . . Hacking | -11 -10 -9 --------- Run | Yrd Mat Mat Machines Accessed 7 | . 4 3 Terminals 5 | . 3 2 Fabricators . | . . . Repair Stations 1 | . 1 . Recycling Units 1 | . . 1 Scanalyzers . | . . . Garrison Access . | . . . Total Hacks 18 | . 10 8 Successful 4 | . 4 . Failed 14 | . 6 8 Catastrophic 2 | . . 2 Database Lockouts . | . . . Manual . | . . . Terminals 14 | . 9 5 Fabricators . | . . . Repair Stations 1 | . 1 . Recycling Units 3 | . . 3 Scanalyzers . | . . . Garrison Access . | . . . Terminal Hacks 3 | . 3 . Emergency Access Points 2 | . 2 . Locate Traps 1 | . 1 . Fabricator Hacks . | . . . Repair Station Hacks 1 | . 1 . Refit 1 | . 1 . Recycling Unit Hacks . | . . . Scanalyzer . | . . . Garrison Access Hacks . | . . . Unauthorized Hacks . | . . . Terminals . | . . . Fabricators . | . . . Repair Stations . | . . . Recycling Units . | . . . Scanalyzers . | . . . Garrison Access . | . . . Data Cores Recovered . | . . . Used . | . . . Hacking Detections 6 | . 3 3 Full Trace Events 6 | . 3 3 Feedback Events 2 | . 1 1 Corruption 2 | . 1 1 Feedback Blocked . | . . . Robot Schematics Acquired . | . . . Robots Built . | . . . Authchips . | . . . Time . | . . . Total Robot Build Rating . | . . . Part Schematics Acquired . | . . . Parts Built . | . . . Authchips . | . . . Time . | . . . Total Part Build Rating . | . . . Parts Repaired . | . . . Time . | . . . Parts Recycled . | . . . Recycled Matter . | . . . Retrieved Matter . | . . . Retrieved Components . | . . . Parts Scanalyzed . | . . . Part Schematics Acquired . | . . . Parts Damaged . | . . . Bothacking | -11 -10 -9 ------------ Run | Yrd Mat Mat Used RIF Installer . | . . . Robots Hacked . | . . . Non-combat . | . . . Combat . | . . . Robot Hacks Applied . | . . . Relay Couplers Released . | . . . Fabnet Peak Effective % . | . . . Robots Rewired . | . . . Allies Hacked . | . . . Hacks Repelled . | . . . Allies | -11 -10 -9 -------- Run | Yrd Mat Mat Total Allies . | . . . Largest Group . | . . . Highest-Rated Group . | . . . Highest-Rated Ally . | . . . Total Orders . | . . . Ally Attacks . | . . . Total Damage . | . . . Kills . | . . . Allies Corrupted . | . . . Allies Melted . | . . . Intel | -11 -10 -9 ------- Run | Yrd Mat Mat Robot Analysis Total . | . . . Derelict Logs Recovered . | . . . Drone Launches . | . . . Drone Recoveries . | . . . Exploration | -11 -10 -9 ------------- Run | Yrd Mat Mat Turns Passed 843 | 69 327 447 Spaces Moved 553 | 49 224 280 Core 16 | 2 . 14 Treads . | . . . Legs 537 | 47 224 266 Wheels . | . . . Hover . | . . . Flight . | . . . Fastest Speed 50 | 50 120 50 Average Speed 118 | 117 120 116 Slowest Speed 150 | 120 120 150 Overloaded Moves . | . . . Propulsion Burnouts . | . . . Robots Hopped . | . . . Cave-ins Triggered . | . . . Exploration Rate (%) 21 | 3 35 25 Regions Visited 2 Branch Regions . Pre-discovered Areas . | . . . Known Exits Taken . | . . . Unknown Exits Taken 2 | 1 1 . Scrap Searched . | . . . Spaces Dug . | . . . Terrain Destroyed . | . . . Melee . | . . . Projectile . | . . . AOE . | . . . Terrain Rammed . | . . . Walls Destroyed . | . . . Machines Disabled . | . . . Actions | -11 -10 -9 --------- Run | Yrd Mat Mat Total 655 | 57 251 347 Wait 20 | . 2 18 Move 551 | 48 223 280 Hop . | . . . Pick Up 11 | 3 4 4 Fast Attach 8 | 6 . 2 Attach 7 | . . 7 Detach . | . . . Swap 5 | . 2 3 Drop 5 | . 4 1 Fire 46 | . 16 30 Melee . | . . . Ram 1 | . . 1 Kick 1 | . . 1 Crush . | . . . Escape Stasis . | . . . Rewire . | . . . Trap . | . . . Miscellaneous . | . . . Route ------- -11/Scrapyard -10/Materials -9/Materials History --------- Turn | Location | Event 4 | -11/Scrapyard | Discovered new exit (range 16) 70 | -11/Scrapyard | Entered Materials 307 | -10/Materials | Build established: Mutant 383 | -10/Materials | Discovered new exit (range 9) 397 | -10/Materials | Entered another Materials area 397 | -9/Materials | Evolved 2 slots: Propulsion x1, Utility x1 825 | -9/Materials | Core integrity fell below 50% 840 | -9/Materials | Core integrity fell below 20% 844 | -9/Materials | Destroyed by G-34 Mercenary with Small Laser Last Messages --------------- Assault Rifle destroyed. X1PZGOPSZ=EWL>7#7XK72MZ7CG7M FSIEE0N Hvy. Assault Rifle destroyed. Atomic Centrifuge disabled. Med. Armor Plating destroyed. Aluminum Leg destroyed. Slammed into A-02 Transporter. Connecting with Terminal... System corrupted: Assault Rifle rejected. G-34 Mercenary destroyed. R-06 Scavenger collects Aluminum Leg. Backup Plating I destroyed. G-34 Mercenary destroyed. Lgt. Armor Plating destroyed. Assault Rifle destroyed. Acquired Sml. Laser. G-34 Mercenary destroyed. System corrupted: IFF burst signal emitted. Sml. Laser destroyed. Acquired Assault Rifle. Map ----- +----------------------------------------------------+ | ?????????????????????????????????????????????????? | | ?????????????????????????????????????????????????? | | ?????????????????????????????????????????????????? | | ??????????? ???????????????????????????????????? | | ??????????# ???#+##########????????????#???????? | | ??????????# #??# #?????????? ????????? | | ??????????# #??# ##### #????????# ??????????? | | ??????????# #??# #???# ##### ???????? | | ??????????# #??# #???# = ???????? | | ??????????# #??# #??##/########+#??????????????? | | ?????####?# ####/#### #??????????????? | | ?????? ?# ## ## #??????????????? | | #?????? # ## "" ## """ #??????????????? | | +???? # ## ""S ## "" #??????????????? | | #???????? / ## "" ## """ [[ ##?????????????? | | ??????????# ## ## [[ #?????????????? | | ??????????# ## ## ##?????????????? | | ????#+#??## ## *% ##########/###??????????????? | | ????# #??# ###+########## #??????????????? | | ????# #??# #??????????????? | | ##### #### T T #??????????????? | | ## #??????????????? | | ### T" ##########/### #??????????????? | | ??# " ########??????#[%Y= #######??????????????? | | ??# #?????????????#*Y%%g#????????????????????? | | ??# #?????????????# Y@[ #????????????????????? | | ??## ##?????????????# = #????????????????????? | | ???# #??????????????# "T" #????????????????????? | | ???+ #??????????????# """ #????????????????????? | | ???# #??????????????# #????????????????????? | | ???# #??????????????#######????????????????????? | | ???# ?????????????????????????????????????????? | | ???# ?????????????????????????????????????????? | | ???# ????????????????????????????????????????? | | ???######????????????????????????????????????????? | | ?????????????????????????????????????????????????? | | ?????????????????????????????????????????????????? | | ?????????????????????????????????????????????????? | | ?????????????????????????????????????????????????? | | ?????????????????????????????????????????????????? | | ?????????????????????????????????????????????????? | | ?????????????????????????????????????????????????? | | ?????????????????????????????????????????????????? | | ?????????????????????????????????????????????????? | | ?????????????????????????????????????????????????? | | ?????????????????????????????????????????????????? | | ?????????????????????????????????????????????????? | | ?????????????????????????????????????????????????? | | ?????????????????????????????????????????????????? | | ?????????????????????????????????????????????????? | +----------------------------------------------------+ Best States ------------- Heat Dissipation 28 Energy Generation 10 Energy Capacity 250 Matter Stores 300 Matter Capacity 300 Sight Range 18 Terrain Scan Density 10 Armor Coverage 230 Evasion (%) 55 Targeting Accuracy 5 Item Schematics ----------------- None Robot Schematics ------------------ None Fabricated ------------ Nothing Alien Tech Used ----------------- None Achievements -------------- None Challenges ------------ None Game ------ Seed HardenedFusionCycler Manual? 0 Play Time 00:08:49 Cumulative 3.2 hours Start 2024.04.01 @ 18:45:49 End 2024.04.01 @ 18:53:44 Sessions 1 Manual Loads 0 Difficulty Rogue Special Mode None Game No. 10 Rogue 10 Adventurer 0 Explorer 0 Win Type - Total 0 Types 0/0/0/0/0/0/0/0/0 Lore% 11 Gallery% 10 Achievement% 10 Wizard Run 0 Options --------- Layout 1 ASCII 0 Keyboard 0 Movement Mouse Keybinds 0 Fullscreen 1 Font 24/Smallcaps Map View 50x35 Zoom Use 0% Tactical HUD 0 Map Filters NONE Filters NONE Steam 1 RUN: 048d8c56-ec28-471d-a9c4-c34f6f2b9fb0